Cogmind - Beta 17.1 @@@ ROGUE MODE // 2026.09.02 @ 04:50:48 Player: Grose Result: Destroyed by Y-45 Defender with Beam Rifle Performance ------------- Evolutions (2) 1000 Regions Visited (4) 800 Robots Destroyed (45) 225 Value Destroyed (1380) 1380 Prototype IDs (2) 40 Alien Tech Used (0) 0 Bonus (0) 0 TOTAL SCORE: 3445 Bonus ------- None Cogmind --------- Core Integrity 0/550 Matter 144/300 Energy 83/100 System Corruption 8% Temperature Cool (9) Movement Core (50) Location -8/Storage Parts ------- > --- POWER (1) -------- (None) > --- PROPULSION (4) --- (None) > --- UTILITY (4) ------ Improved Targeting Computer > --- WEAPON (2) ------- (None) > --- INVENTORY (5) ---- Improved VTOL Module Improved Terrain Scanner Advanced Beam Rifle Peak State ------------ > --- POWER ------------ Ion Engine > --- PROPULSION ------- Wheel Subdweller Monowheel Improved VTOL Module > --- UTILITY ---------- Large Storage Unit Sensor Array Signal Interpreter Improved Light Armor Plating > --- WEAPON ----------- Improved Light Cannon Improved Light Cannon > --- INVENTORY -------- Aluminum Leg Medium Storage Unit Medium Storage Unit Weight Redist. System Weight Redist. System Improved Terrain Scanner Improved Terrain Scanner Seismic Detector Light Armor Plating Shield Generator Improved Light Cannon Rocket Launcher Rocket Launcher [Rating: 20] Favorites ----------- Power Ion Engine Engine Ion Engine Power Core Nuclear Core Propulsion Light Treads Treads Light Treads Leg Aluminum Leg Wheel Subdweller Monowheel Flight Unit Improved VTOL Module Utility Large Storage Unit Device Seismic Detector Storage Large Storage Unit Processor Signal Interpreter Protection Improved Light Armor Plating Weapon Improved Light Cannon Ballistic Gun Light Assault Rifle Ballistic Cannon Improved Light Cannon Launcher Rocket Launcher Impact Weapon Great Maul Build | -11 -10 -10 -8 -8 ------- Run | Yrd Mat Sub Mat Sto Slots Evolved 4 | . . . 4 . Power . | . . . . . Propulsion 2 | . . . 2 . Utility 2 | . . . 2 . Weapon . | . . . . . Parts Attached 40 | 7 12 . 10 11 Power 4 | 1 1 . 2 . Engine 3 | 1 1 . 1 . Core 1 | . . . 1 . Reactor . | . . . . . Propulsion 10 | 2 1 . 3 4 Treads 3 | 2 1 . . . Leg 4 | . . . . 4 Wheel 2 | . . . 2 . Hover . | . . . . . Flight 1 | . . . 1 . Utility 14 | 2 6 . 3 3 Device 7 | 1 4 . 1 1 Storage 2 | 1 1 . . . Processor 3 | . . . 1 2 Hackware . | . . . . . Protection 2 | . 1 . 1 . Artifact . | . . . . . Weapon 12 | 2 4 . 2 4 Energy Gun . | . . . . . Energy Cannon . | . . . . . Ballistic Gun 4 | 2 1 . . 1 Ballistic Cannon 5 | . 3 . 2 . Launcher 2 | . . . . 2 Special Weapon . | . . . . . Impact Weapon 1 | . . . . 1 Slashing Weapon . | . . . . . Piercing Weapon . | . . . . . Special Melee Weapon . | . . . . . Unidentified Prototypes 2 | . . . 2 . Parts Lost 26 | . 2 . 6 18 Power 3 | . . . 2 1 Propulsion 8 | . . . 2 6 Utility 8 | . 2 . . 6 Weapon 7 | . . . 2 5 Highest Loss Streak 5 | . 1 . 3 5 To Critical Strikes . | . . . . . Average Backups 11 | 4 11 15 13 11 Power . | . 1 1 . . Propulsion 1 | 1 1 2 1 1 Utility 6 | . 5 8 8 8 Weapon 2 | 1 3 4 3 1 Tool/Special . | . . . . . Unused Backups 16 | . 8 1 . 7 Power . | . . . . . Propulsion 2 | . 1 1 . . Utility 6 | . . . . 6 Weapon 7 | . 6 . . 1 Tool/Special 1 | . 1 . . . Average Slot Usage (%) 86 | . 98 100 80 69 Engine 8 | . 14 14 8 . Core 1 | . . . . 5 Treads 15 | . 27 28 3 . Leg 3 | . . . . 13 Wheel 4 | . . . 13 6 Device 7 | . 10 . 8 5 Storage 11 | . 14 14 9 8 Processor 3 | . . . 9 8 Protection 6 | . 3 14 9 8 Ballistic Gun 4 | . 8 . . . Ballistic Cannon 16 | . 18 28 18 8 Launcher 1 | . . . . 4 Peak Build Rating 20 | 8 12 11 20 20 Average Rating 12 | 6 9 11 14 16 On Entrance 9 | . 8 11 11 18 Avg Prop Armor Cover (%) 2 | . . . 3 2 Naked Turns . | . . . . . Heaviest Build 39 | 13 36 36 39 39 Greatest Support 40 | 40 40 40 40 30 Greatest Overweight (x) 7 | . 1 . 3 7 Average Overweight (x) . | . . . . 1 Largest Inventory Capacity 15 | 8 15 15 15 15 Average Capacity 13 | 7 12 15 15 14 Most Carried 15 | 7 15 15 15 14 Average Carried 11 | 4 11 15 13 11 Final Capacity 15 | 8 15 15 15 5 Final Carried 15 | 7 15 15 14 3 Class Distribution -------------------- 100% | Mutant Dominant Class ---------------- Mutant | -10/Materials Mutant | -10/Subcaves Mutant | -8/Materials Mutant | -8/Storage Resources | -11 -10 -10 -8 -8 ----------- Run | Yrd Mat Sub Mat Sto Matter Collected 1373 | 292 476 . 335 270 Remotely . | . . . . . Salvage Created 1115 | 155 489 . 204 267 Parts 66 | 15 32 1 7 11 Haulers Intercepted . | . . . . . Recyclers Shooed 1 | 1 . . . . Parts Field Recycled . | . . . . . Retrieved Matter . | . . . . . Parts Self-Destructed . | . . . . . Prevented . | . . . . . Parts Restored . | . . . . . Kills | -11 -10 -10 -8 -8 ------- Run | Yrd Mat Sub Mat Sto Combat Hostiles Destroyed 33 | . 15 1 7 10 Melee 2 | . . . . 2 Guns 5 | . 5 . . . Cannons 23 | . 10 1 7 5 AOE 2 | . . . . 2 Classes Destroyed 11 | 2 5 1 2 1 Worker 1 | . 1 . . . Tunneler 5 | 5 . . . . Recycler 2 | 1 1 . . . Mechanic 1 | . . . 1 . Operator 1 | . 1 . . . Watcher 2 | . 2 . . . Swarmer 6 | . 6 . . . Grunt 22 | . 9 . 5 8 Duelist 1 | . . . . 1 Sentry 3 | . . . 2 1 Subdweller 1 | . . 1 . . Best Kill Streak 3 | 2 3 1 3 3 Combat Bots Only 3 | . 3 1 3 3 Max Kills in Single Turn 2 | 1 2 1 2 1 Gunslinging . | . . . . . Exploded 1 | . . . . 1 Melee 1 | . . . . 1 Uniques/NPCs Destroyed . | . . . . . Combat | -11 -10 -10 -8 -8 -------- Run | Yrd Mat Sub Mat Sto Hostile Shots Fired 253 | . 79 9 57 108 Missed 69 | . 23 3 16 27 Hits 184 | . 56 6 41 81 Melee 10 | . . . . 10 Projectile 174 | . 56 6 41 71 Critical Strikes 11 | . . . 4 7 Damage Taken 3131 | . 571 168 630 1762 Core 730 | . 150 30 81 469 Absorbed by Shields 46 | . 15 . . 31 Core Remaining (%) 64 | 100 . 28 . . Volleys Fired 156 | 22 47 7 28 52 Largest 2 | 2 2 2 2 2 Hottest 66 | 40 66 66 66 66 Shots Fired 283 | 44 90 14 56 79 Gun 78 | 44 34 . . . Cannon 200 | . 56 14 56 74 Launcher 5 | . . . . 5 Special . | . . . . . Kinetic 278 | 44 90 14 56 74 Thermal . | . . . . . Explosive 5 | . . . . 5 Electromagnetic . | . . . . . Robot Hit Streak 22 | 5 10 6 11 22 Robot Miss Streak 6 | 6 2 1 1 1 Penetration Max . | . . . . . Secondary Targets . | . . . . . Shots Hit Robots 176 | 26 56 9 41 44 Core Hits 70 | 13 26 2 13 16 Critical Kills . | . . . . . Critical Parts Destroyed 2 | 1 . . . 1 Critical Strikes 9 | 1 1 1 3 3 Destroy 1 | 1 . . . . Blast 7 | . 1 1 3 2 Smash 1 | . . . . 1 Melee Attacks 7 | . . . . 7 Impact 7 | . . . . 7 Slashing . | . . . . . Piercing . | . . . . . Sneak Attacks . | . . . . . Combat Hostiles . | . . . . . Follow-up Attacks . | . . . . . Damage Inflicted 3314 | 207 959 180 848 1120 Guns 440 | 207 233 . . . Cannons 2460 | . 725 180 848 707 Explosions 147 | . . . . 147 Melee 239 | . . . . 239 Ramming 28 | . 1 . . 27 Kinetic 2900 | 207 958 180 848 707 Thermal . | . . . . . Explosive 147 | . . . . 147 Electromagnetic . | . . . . . Impact 239 | . . . . 239 Slashing . | . . . . . Piercing . | . . . . . Highest Corruption 8 | . . . . 8 Average Corruption 8 | . . . . 8 Corruption Purged . | . . . . . Corruption Blocked . | . . . . . Effects 15 | . . . . 15 Message Errors 3 | . . . . 3 Matter Fused 3 | . . . . 3 Heat Flow Errors 3 | . . . . 3 Energy Discharges 2 | . . . . 2 Parts Fused 1 | . . . . 1 Data Loss (minor) 1 | . . . . 1 Misfires 1 | . . . . 1 Alerts 1 | . . . . 1 Overload Shots . | . . . . . Overflow Damage 133 | . 24 . . 109 Projectiles 45 | . 24 . . 21 Explosions 33 | . . . . 33 Melee 55 | . . . . 55 Knockbacks 25 | . 6 1 5 13 Impact . | . . . . . Kinetic 22 | . 6 1 4 11 Secondary 3 | . . . 1 2 Self-Inflicted Damage 169 | . . . . 169 Shots 4 | . . . . 4 Rammed 6 | . 1 . . 5 Targets Rammed 12 | . 1 . . 11 Kicked 6 | . . . . 6 Crushed . | . . . . . Highest Temperature 221 | . 51 . 79 221 Average Temperature 30 | . 15 . 29 43 Received Heat Transfer 1290 | . 225 54 324 687 Siege Activations . | . . . . . Martial Activations . | . . . . . Shielding Activations . | . . . . . Robots Disrupted . | . . . . . Combat Hostiles . | . . . . . Robots Corrupted 1 | . . . . 1 Combat Hostiles 1 | . . . . 1 Parts Fried 2 | . . . . 2 Impact Corruptions 2 | . . . . 2 Robots Melted . | . . . . . Combat Hostiles . | . . . . . Parts Melted . | . . . . . Heat Transferred . | . . . . . Parts Sabotaged . | . . . . . Parts Stolen . | . . . . . Parts Stripped . | . . . . . Power Chain Reactions . | . . . . . Alert | -11 -10 -10 -8 -8 ------- Run | Yrd Mat Sub Mat Sto Maximum Alert Level . | . . . . . Low Security (%) 100 | 100 100 . 100 100 Level 1 . | . . . . . Level 2 . | . . . . . Level 3 . | . . . . . Level 4 . | . . . . . Level 5 . | . . . . . High Security . | . . . . . Max Security . | . . . . . Peak Influence 144 | 10 144 . 56 69 Initial . | . . . . . Average 31 | . 56 . 13 11 Influence Increases 1066 | 30 469 . 190 377 Destroy 0b10 Robot/C 640 | . 300 . 140 200 Destroy 0b10 Robot/NC 60 | 30 25 . 5 . Destroy Leader 154 | . 64 . 40 50 Successful Hack 52 | . 46 . . 6 Disable Machine 60 | . 15 . . 45 Destroy Structure 40 | . 4 . 5 31 Partial Spotted 15 | . . . . 15 Lose Combat Pursuer 45 | . 15 . . 30 Influence Decreases 1007 | 30 392 77 190 318 Entered New Map 37 | . . 37 . . Time Decay 876 | 30 372 40 170 264 Lost Part 94 | . 20 . 20 54 Squads Dispatched 7 | . 2 . 1 4 Investigation 3 | . 1 . . 2 Extermination . | . . . . . Reinforcement 4 | . 1 . 1 2 Assault . | . . . . . Garrison . | . . . . . Intercept . | . . . . . Searches Triggered . | . . . . . Construction Impeded 1 | . . . . 1 Haulers Reinforced . | . . . . . Active Scanning Responses . | . . . . . Cargo Convoy Interrupts . | . . . . . Stealth | -11 -10 -10 -8 -8 --------- Run | Yrd Mat Sub Mat Sto Distress Signals 5 | . 2 . 2 1 Communications Jammed . | . . . . . Distress Signals . | . . . . . Times Spotted 62 | . 25 1 15 21 Peak Tracking Total 10 | . 4 1 4 10 Tactical Retreats 3 | . 1 . . 2 Traps | -11 -10 -10 -8 -8 ------- Run | Yrd Mat Sub Mat Sto Traps Triggered 5 | . 2 . . 3 Indirectly . | . . . . . Trap Hack Attempts . | . . . . . Triggered . | . . . . . Disarmed . | . . . . . Reprogrammed . | . . . . . Reused . | . . . . . Traps Extracted . | . . . . . Installed . | . . . . . Triggered . | . . . . . Machines | -11 -10 -10 -8 -8 ---------- Run | Yrd Mat Sub Mat Sto Machines Disabled 4 | . 1 . . 3 Max in Single Turn 1 | . 1 . . 1 Machines Repaired . | . . . . . Machines Dismantled . | . . . . . Machines Sabotaged . | . . . . . Overloaded Fab Kills . | . . . . . Hacking | -11 -10 -10 -8 -8 --------- Run | Yrd Mat Sub Mat Sto Machines Accessed 11 | . 9 . . 2 Terminals 8 | . 7 . . 1 Fabricators . | . . . . . Repair Stations . | . . . . . Recycling Units 3 | . 2 . . 1 Scanalyzers . | . . . . . Garrison Access . | . . . . . Total Hacks 30 | . 25 . . 5 Successful 17 | . 14 . . 3 Failed 13 | . 11 . . 2 Catastrophic 4 | . 4 . . . Database Lockouts . | . . . . . Manual 26 | . 23 . . 3 Terminals 21 | . 20 . . 1 Fabricators . | . . . . . Repair Stations . | . . . . . Recycling Units 9 | . 5 . . 4 Scanalyzers . | . . . . . Garrison Access . | . . . . . Terminal Hacks 3 | . 2 . . 1 Open Door 1 | . . . . 1 Terminal Index 1 | . 1 . . . Recall Investigation 1 | . 1 . . . Fabricator Hacks . | . . . . . Repair Station Hacks . | . . . . . Recycling Unit Hacks 1 | . 1 . . . Report Inventory 1 | . 1 . . . Scanalyzer . | . . . . . Garrison Access Hacks . | . . . . . Unauthorized Hacks 13 | . 11 . . 2 Terminals 7 | . 7 . . . Botnet 6 | . 6 . . . Skim 1 | . 1 . . . Fabricators . | . . . . . Repair Stations . | . . . . . Recycling Units 6 | . 4 . . 2 Reject 3 | . 2 . . 1 Mask 3 | . 2 . . 1 Scanalyzers . | . . . . . Garrison Access . | . . . . . Data Cores Recovered 1 | . 1 . . . Used 1 | . 1 . . . Hacking Detections 8 | . 7 . . 1 Full Trace Events 3 | . 2 . . 1 Feedback Events . | . . . . . Feedback Blocked . | . . . . . Robot Schematics Acquired . | . . . . . Robots Built . | . . . . . Authchips . | . . . . . Time . | . . . . . Total Robot Build Rating . | . . . . . Part Schematics Acquired . | . . . . . Parts Built . | . . . . . Authchips . | . . . . . Time . | . . . . . Total Part Build Rating . | . . . . . Part Studies Acquired . | . . . . . Parts Repaired . | . . . . . Time . | . . . . . Parts Recycled . | . . . . . Recycled Matter . | . . . . . Retrieved Matter . | . . . . . Retrieved Components . | . . . . . Parts Scanalyzed . | . . . . . Part Schematics Acquired . | . . . . . Parts Damaged . | . . . . . Bothacking | -11 -10 -10 -8 -8 ------------ Run | Yrd Mat Sub Mat Sto Used RIF Installer . | . . . . . Robots Hacked . | . . . . . Non-combat . | . . . . . Combat . | . . . . . Robot Hacks Applied . | . . . . . Relay Couplers Released . | . . . . . Fabnet Peak Effective % . | . . . . . Robots Rewired . | . . . . . Allies Hacked . | . . . . . Hacks Repelled . | . . . . . Allies | -11 -10 -10 -8 -8 -------- Run | Yrd Mat Sub Mat Sto Total Allies . | . . . . . Largest Group . | . . . . . Highest-Rated Group . | . . . . . Highest-Rated Ally . | . . . . . Total Orders . | . . . . . Ally Attacks . | . . . . . Total Damage . | . . . . . Kills . | . . . . . Allies Corrupted . | . . . . . Allies Melted . | . . . . . Intel | -11 -10 -10 -8 -8 ------- Run | Yrd Mat Sub Mat Sto Active Infowar (turns) 2254 | 175 884 . 643 552 Sensors 1195 | . . . 643 552 Seismic 1059 | 175 884 . . . Robot Analysis Total . | . . . . . Derelict Logs Recovered . | . . . . . Drone Launches . | . . . . . Drone Recoveries . | . . . . . Exploration | -11 -10 -10 -8 -8 ------------- Run | Yrd Mat Sub Mat Sto Turns Passed 4066 | 260 1671 359 644 1132 Spaces Moved 1920 | 124 857 211 337 391 Core 68 | 13 . . . 55 Treads 1232 | 111 857 211 53 . Legs 273 | . . . . 273 Wheels 347 | . . . 284 63 Hover . | . . . . . Flight . | . . . . . Fastest Speed 50 | 50 160 160 107 50 Average Speed 155 | 148 160 160 115 178 Slowest Speed 400 | 160 240 160 160 400 Overloaded Moves . | . . . . . Propulsion Burnouts . | . . . . . Robots Hopped . | . . . . . Potential Cave-ins 6 | . . . . 6 Cave-ins Triggered 1 | . . . . 1 Exploration Rate (%) 37 | 8 95 19 27 40 Regions Visited 4 Branch Regions 2 Pre-discovered Areas . | . . . . . Known Exits Taken 1 | . . . 1 . Unknown Exits Taken 3 | 1 1 1 . . Scrap Searched . | . . . . . Spaces Dug 14 | . . . 1 13 Terrain Destroyed 71 | . . . 2 69 Melee . | . . . . . Projectile 16 | . . . 2 14 AOE 55 | . . . . 55 Terrain Rammed . | . . . . . Walls Destroyed . | . . . . . Machines Disabled . | . . . . . Actions | -11 -10 -10 -8 -8 --------- Run | Yrd Mat Sub Mat Sto Total 2720 | 164 1072 219 535 730 Wait 495 | . 109 . 152 234 Move 1916 | 123 856 210 336 391 Hop . | . . . . . Pick Up 55 | 12 27 1 7 8 Fast Attach 6 | 2 3 . . 1 Attach 34 | 5 9 . 9 11 Detach 2 | . . . 1 1 Swap 9 | . 4 . 2 3 Drop 18 | . 16 1 . 1 Fire 156 | 22 47 7 28 52 Melee 7 | . . . . 7 Ram 5 | . . . . 5 Kick 6 | . . . . 6 Crush 1 | . 1 . . . Escape Stasis 10 | . . . . 10 Rewire . | . . . . . Trap . | . . . . . Miscellaneous . | . . . . . Route ------- -11/Scrapyard -10/Materials (discovered 6 exits: [*Mat x3] / [*Min x2] / [*Sub]) -10/Subcaves -8/Materials (discovered 2 exits: [*Fac] / *Sto) -8/Storage History --------- Turn | Location | Event 8 | -11/Scrapyard | Discovered new exit (range 15) 261 | -11/Scrapyard | Entered Materials 314 | -10/Materials | Build established: Mutant 570 | -10/Materials | Discovered new exit (range 15) 1012 | -10/Materials | Discovered new exit (range 10) 1196 | -10/Materials | Discovered new exit (range 12) 1295 | -10/Materials | Core integrity fell below 50% 1317 | -10/Materials | Discovered new exit (range 16) 1484 | -10/Materials | Discovered new exit (range 6) 1919 | -10/Materials | Discovered new exit (range 8) 1932 | -10/Materials | Entered Subcaves 1949 | -10/Subcaves | Shifting Twisted Machinery released Battle Rifle 1954 | -10/Subcaves | Shifting Twisted Machinery released Sub. Monowheel 2076 | -10/Subcaves | Discovered new exit (range 13) 2085 | -10/Subcaves | Disturbed a concealed Subdweller 2291 | -10/Subcaves | Entered Materials 2291 | -8/Materials | Evolved 4 slots: Propulsion x2, Utility x2 2458 | -8/Materials | Lost 3 parts (2n1w) 2630 | -8/Materials | Discovered new exit (range 12) 2839 | -8/Materials | Discovered new exit (range 16) 2921 | -8/Materials | Identified exit to Storage 2935 | -8/Materials | Entered Storage 3617 | -8/Storage | Crushed by falling debris 3667 | -8/Storage | Lost 4 parts (1p1n2u) 4000 | -8/Storage | Core integrity fell below 50% 4039 | -8/Storage | Lost 5 parts (3n1u1w) 4061 | -8/Storage | Core integrity fell below 20% 4067 | -8/Storage | Destroyed by Y-45 Defender with Beam Rifle Last Messages --------------- 04044_ Destroyed Lgt. Angular Momentum Engine. 04044_ G-50 Soldier system corrupted by crushing effect. 04044_ G-50 Soldier destroyed. 04047_ Acquired 64 matter. 04050_ Lgt. Armor Plating destroyed. 04052_ Shield Generator destroyed. 04054_ L-31 Rogue destroyed. 04055_ Acquired 36 matter. 04055_ Critical hit (Burn: +37). 04057_ Destroyed Lgt. Nuclear Core. 04057_ G-47 Trooper system corrupted by crushing effect. 04058_ G-47 Trooper system terminally corrupted. 04058_ Particle Gun fried. 04058_ Aluminum Leg fried. 04064_ Great Maul destroyed. 04064_ Critical hit (Burn: +37). 04066_ TUPTDP/3<:YKMO4XNHLXDFDKUNYIC8/FP3H % 04066_ Slammed into G-47 Trooper. Map ----- +----------------------------------------------------+ | ???????????????????????#! !#?# ############ | | ???????????????????????#! !#?## ###########?? | | ??????????????????????### ##??# # #?? | | ??????????????????????#T #??# # """ ### | | ??????????????????????###+##### # """" " ## | | ???????????????????????# # "??"= ## | | ?????????????###########[%*#### + "??" ## | | ????????????# / = #??# # "?""" ## | | ????????????# """" ## ""## + """ ## | | ??????????????????" ## T"## # #? | | ??????????????????"! ## ""## ###### # #? | | ??????????????????"]] ## #####+##???########? | | ??????????????????"!!!## #?? ???????????? | | ????????????# """"!! ## # ?????????? | | ????????????# ! ## ## ! #????????? | | ?????????#########/#### #""" "#???????? | | ?????????# #""" T#???????? | | ?????????# #""" "#???????? | | ?????????# #""" ##???????? | | ?????????# ####"T"### #??" #????????? | | ?????????# ################?? #????????? | | ?????????# ## #???????#######????????? | | ?????????# ## [###########????????????? | | ?????????# ## /*Y% #????????????? | | ?????????# ## ==# #????????????? | | ?????????# #########@# #????????????? | | ?????????# YYg# #????????????? | | ??????? / k =+ #????????????? | | ?????????# # #????????????? | | ?????????# ##"T"###### #????????????? | | ?????????# ######????# #????????????? | | ?????????# #?????????###########????????????? | | ?????????# #????????????????????????????????? | | ?????????# #????????????????????????????????? | | ?????????# #????????????????????????????????? | | ?????????# #????????????????????????????????? | | ?????????# #????????????????????????????????? | | ?????????/ #????????????????????????????????? | | ?????????# ?????????????????????????????????? | | ?????????# ?????????????????????????????????? | | ?????????# ?????????????????????????????????? | | ??????????????????????????????????????????????? | | ??????????????????????????????????????????????? | | ??????????????????????????????????????????????? | | ??????????????????????????????????????????????? | | ??????????????????????????????????????????????? | | ??????????????????????????????????????????????? | | ??????????????????????????????????????????????? | | ??????????????????????????????????????????????? | | ??????????????????????????????????????????????? | +----------------------------------------------------+ Best States ------------- Heat Dissipation 31 Energy Generation 14 Energy Capacity 250 Matter Stores 300 Matter Capacity 300 Sight Range 16 Robot Scan Range 15 Terrain Scan Density 10 Armor Coverage 150 Evasion (%) 55 Targeting Accuracy 6 Recoil Reduction 2 Item Schematics ----------------- None Robot Schematics ------------------ None Fabricated ------------ Nothing Repaired ---------- Nothing Studied --------- None Alien Tech Used ----------------- None Achievements -------------- None Challenges ------------ None Game ------ Seed TachyonFieldthrustFalx Manual? 0 Play Time 00:38:18 Cumulative 24.1 hours Start 2026.09.02 @ 04:11:37 End 2026.09.02 @ 04:50:48 Sessions 1 Manual Loads 0 Difficulty Rogue Special Mode None Game No. 16 Rogue 16 Adventurer 0 Explorer 0 Win Type - Total 0 Types 0/0/0/0/0/0/0/0/0/0 Lore% 20 Gallery% 17 Achievement% 14 Wizard Run 0 Options --------- Layout 1 ASCII 0 Keyboard 0 Movement Numpad Keybinds 0 Fullscreen 1 Font 32/SmallcapsGlow Map View 50x35 Zoom Use 0% Tactical HUD 1 Map Filters NONE Filters NONE Steam 1 RUN: 6ebcaa18-8df2-4a91-9cd0-4c3846e3789c